[Event "*** SCC Grand Prix: Titled Tuesday Blitz"]
[Site "Chess.com"]
[Date "2020.07.07"]
[Round "4"]
[White "saraswathii"]
[Black "Iball95"]
[Result "0-1"]
[WhiteElo "2342"]
[BlackElo "2574"]
[TimeControl "180+1"]
[EndTime "10:38:54 PDT"]
[Termination "Iball95 won by resignation"]

1. e4 {[%clk 0:03:00.9]} 1... e5 {[%clk 0:03:00]} 2. d3 {[%clk 0:03:00.8]} 2...
Nf6 {[%clk 0:02:59]} 3. Nf3 {[%clk 0:03:00.2]} 3... Nc6 {[%clk 0:02:53.3]} 4. g3
{[%clk 0:02:48.3]} 4... d5 {[%clk 0:02:53]} 5. exd5 {[%clk 0:02:47.5]} 5... Nxd5
{[%clk 0:02:52.8]} 6. Bg2 {[%clk 0:02:46.2]} 6... Be7 {[%clk 0:02:46.9]} 7. O-O
{[%clk 0:02:36.3]} 7... O-O {[%clk 0:02:46.9]} 8. Nbd2 {[%clk 0:02:35.9]} 8...
Bf5 {[%clk 0:02:42.8]} 9. Nc4 {[%clk 0:02:25.9]} 9... f6 {[%clk 0:02:41.4]} 10.
Nh4 {[%clk 0:02:21]} 10... Be6 {[%clk 0:02:40]} 11. Ne3 {[%clk 0:02:18.6]} 11...
Kh8 {[%clk 0:02:26.9]} 12. Qh5 {[%clk 0:02:11.2]} 12... Bf7 {[%clk 0:02:22]} 13.
Qf3 {[%clk 0:02:04.4]} 13... Nd4 {[%clk 0:02:20.7]} 14. Qd1 {[%clk 0:02:03.3]}
14... c6 {[%clk 0:02:17.4]} 15. c3 {[%clk 0:02:02.3]} 15... Ne6 {[%clk
0:02:15.1]} 16. Nef5 {[%clk 0:02:02.1]} 16... Qd7 {[%clk 0:02:12.7]} 17. Qg4
{[%clk 0:01:55.4]} 17... Rad8 {[%clk 0:02:04.7]} 18. d4 {[%clk 0:01:46.8]} 18...
exd4 {[%clk 0:02:01.5]} 19. cxd4 {[%clk 0:01:44.1]} 19... g6 {[%clk 0:01:57.5]}
20. Nxe7 {[%clk 0:01:39.6]} 20... Nxe7 {[%clk 0:01:49.2]} 21. Bh6 {[%clk
0:01:37]} 21... Rfe8 {[%clk 0:01:45.4]} 22. Rad1 {[%clk 0:01:34.9]} 22... Nxd4
{[%clk 0:01:37.1]} 23. Qxd7 {[%clk 0:01:28.7]} 23... Rxd7 {[%clk 0:01:38]} 24.
Rfe1 {[%clk 0:01:27.9]} 24... Red8 {[%clk 0:01:34.9]} 25. Rd2 {[%clk 0:01:12.9]}
25... Nef5 {[%clk 0:01:26.9]} 26. Nxf5 {[%clk 0:00:50.6]} 26... Nxf5 {[%clk
0:01:27.8]} 27. Rxd7 {[%clk 0:00:50.2]} 27... Rxd7 {[%clk 0:01:28.7]} 28. Bf4
{[%clk 0:00:50.6]} 28... Bxa2 {[%clk 0:01:24.7]} 29. Ra1 {[%clk 0:00:46.3]}
29... Bd5 {[%clk 0:01:21.2]} 30. Bxd5 {[%clk 0:00:44.5]} 30... Rxd5 {[%clk
0:01:22.1]} 31. Rxa7 {[%clk 0:00:44.2]} 31... Rb5 {[%clk 0:01:20.7]} 32. Kg2
{[%clk 0:00:38.3]} 32... Rxb2 {[%clk 0:01:19.3]} 33. g4 {[%clk 0:00:38.5]} 33...
Nh4+ {[%clk 0:01:15.6]} 34. Kh3 {[%clk 0:00:29.8]} 34... g5 {[%clk 0:01:12]} 35.
Bg3 {[%clk 0:00:24.5]} 35... Ng6 {[%clk 0:01:07.9]} 0-1

[Event "*** SCC Grand Prix: Titled Tuesday Blitz"]
[Site "Chess.com"]
[Date "2020.07.07"]
[Round "4"]
[White "DarkAlekhine"]
[Black "hanzo_hasashi1"]
[Result "0-1"]
[WhiteElo "2631"]
[BlackElo "2845"]
[TimeControl "180+1"]
[EndTime "10:38:57 PDT"]
[Termination "hanzo_hasashi1 won by resignation"]

1. Nf3 {[%clk 0:03:00.9]} 1... Nf6 {[%clk 0:02:59.2]} 2. c4 {[%clk 0:03:01]}
2... e6 {[%clk 0:02:58.9]} 3. g3 {[%clk 0:02:59.6]} 3... b6 {[%clk 0:02:54]} 4.
Bg2 {[%clk 0:02:59.4]} 4... Bb7 {[%clk 0:02:54.5]} 5. O-O {[%clk 0:02:59.9]}
5... c5 {[%clk 0:02:50.2]} 6. Nc3 {[%clk 0:02:57.7]} 6... Be7 {[%clk 0:02:45.9]}
7. Re1 {[%clk 0:02:58]} 7... d5 {[%clk 0:02:42.2]} 8. cxd5 {[%clk 0:02:57.5]}
8... exd5 {[%clk 0:02:39.6]} 9. d4 {[%clk 0:02:56.8]} 9... Nc6 {[%clk
0:02:35.3]} 10. Bf4 {[%clk 0:02:56.3]} 10... O-O {[%clk 0:02:32.4]} 11. Rc1
{[%clk 0:02:56.6]} 11... Rc8 {[%clk 0:02:23.6]} 12. h4 {[%clk 0:02:49.2]} 12...
Nxd4 {[%clk 0:02:18.3]} 13. Nxd4 {[%clk 0:02:45.5]} 13... cxd4 {[%clk
0:02:18.1]} 14. Nb5 {[%clk 0:02:36.6]} 14... Rxc1 {[%clk 0:02:13.1]} 15. Bxc1
{[%clk 0:02:33.9]} 15... Qd7 {[%clk 0:02:09.2]} 16. Nxd4 {[%clk 0:02:32.5]}
16... Ne4 {[%clk 0:02:05.3]} 17. Qd3 {[%clk 0:02:10.2]} 17... Rc8 {[%clk
0:02:00.1]} 18. Be3 {[%clk 0:01:59.4]} 18... Bf6 {[%clk 0:01:56.3]} 19. Rd1
{[%clk 0:01:43.5]} 19... Nd6 {[%clk 0:01:51.1]} 20. Kh2 {[%clk 0:01:11.6]} 20...
Qa4 {[%clk 0:01:45]} 21. Bf4 {[%clk 0:00:52.5]} 21... Ne4 {[%clk 0:01:40.5]} 22.
Bxe4 {[%clk 0:00:40.6]} 22... dxe4 {[%clk 0:01:37.2]} 23. Qb3 {[%clk 0:00:41]}
23... Qxb3 {[%clk 0:01:29.4]} 24. axb3 {[%clk 0:00:41.9]} 24... Rd8 {[%clk
0:01:24.4]} 25. e3 {[%clk 0:00:41.4]} 25... h6 {[%clk 0:01:22.2]} 26. h5 {[%clk
0:00:36.1]} 26... Bc8 {[%clk 0:01:18.1]} 27. Rc1 {[%clk 0:00:35]} 27... Bg4
{[%clk 0:01:14.6]} 28. Rc7 {[%clk 0:00:15.5]} 28... Bxd4 {[%clk 0:01:14.1]} 29.
exd4 {[%clk 0:00:15.6]} 29... Rxd4 {[%clk 0:01:14.3]} 30. Rxa7 {[%clk 0:00:14]}
30... Rd5 {[%clk 0:01:09]} 31. Kg2 {[%clk 0:00:08.6]} 31... Bf3+ {[%clk
0:01:07.2]} 0-1

[Event "*** SCC Grand Prix: Titled Tuesday Blitz"]
[Site "Chess.com"]
[Date "2020.07.07"]
[Round "4"]
[White "Stronger1799"]
[Black "InitiatingASC"]
[Result "0-1"]
[WhiteElo "2496"]
[BlackElo "2338"]
[TimeControl "180+1"]
[EndTime "10:38:59 PDT"]
[Termination "InitiatingASC won on time"]

1. e4 {[%clk 0:03:00.9]} 1... c5 {[%clk 0:02:59.4]} 2. Nf3 {[%clk 0:03:00.7]}
2... Nc6 {[%clk 0:03:00]} 3. d4 {[%clk 0:03:01.2]} 3... cxd4 {[%clk 0:03:00.9]}
4. Nxd4 {[%clk 0:03:02.1]} 4... Nf6 {[%clk 0:03:01.1]} 5. Nc3 {[%clk 0:03:01.3]}
5... e5 {[%clk 0:03:01.3]} 6. Ndb5 {[%clk 0:03:01.3]} 6... h6 {[%clk 0:03:01.7]}
7. a4 {[%clk 0:02:22.2]} 7... d6 {[%clk 0:02:57.5]} 8. Bc4 {[%clk 0:02:21.6]}
8... Be7 {[%clk 0:02:53.1]} 9. O-O {[%clk 0:02:21.3]} 9... O-O {[%clk
0:02:52.8]} 10. Be3 {[%clk 0:02:16.2]} 10... Be6 {[%clk 0:02:51.4]} 11. Qe2
{[%clk 0:01:56.3]} 11... a6 {[%clk 0:02:30.9]} 12. Na3 {[%clk 0:01:52.3]} 12...
Nd4 {[%clk 0:02:28.2]} 13. Bxd4 {[%clk 0:01:51.2]} 13... exd4 {[%clk 0:02:28.1]}
14. Nd5 {[%clk 0:01:51.5]} 14... Nxd5 {[%clk 0:02:19]} 15. Bxd5 {[%clk
0:01:52.4]} 15... Bxd5 {[%clk 0:02:17.6]} 16. exd5 {[%clk 0:01:53]} 16... Bf6
{[%clk 0:02:17.5]} 17. Nc4 {[%clk 0:01:47.7]} 17... Re8 {[%clk 0:02:10.6]} 18.
Qd3 {[%clk 0:01:47.6]} 18... Qc7 {[%clk 0:02:01.6]} 19. a5 {[%clk 0:01:40.3]}
19... Qc5 {[%clk 0:01:59.8]} 20. Nb6 {[%clk 0:01:40.6]} 20... Rad8 {[%clk
0:01:59.6]} 21. Ra4 {[%clk 0:01:20.7]} 21... Re7 {[%clk 0:01:50]} 22. Qd2 {[%clk
0:01:06]} 22... Rde8 {[%clk 0:01:44.8]} 23. Rc4 {[%clk 0:00:34.4]} 23... Qb5
{[%clk 0:01:36.4]} 24. Qd3 {[%clk 0:00:20.6]} 24... Qxa5 {[%clk 0:01:29.2]} 25.
Nc8 {[%clk 0:00:20.6]} 25... Re1 {[%clk 0:01:22.2]} 26. g3 {[%clk 0:00:17.3]}
26... Qa1 {[%clk 0:01:16.5]} 27. Rxe1 {[%clk 0:00:03]} 27... Qxe1+ {[%clk
0:01:12.5]} 28. Kg2 {[%clk 0:00:03.3]} 28... Qe5 {[%clk 0:01:09.4]} 29. f4
{[%clk 0:00:01.3]} 29... Qxd5+ {[%clk 0:01:08.7]} 30. Kh3 {[%clk 0:00:01.6]}
30... Re3 {[%clk 0:01:03.4]} 0-1

[Event "*** SCC Grand Prix: Titled Tuesday Blitz"]
[Site "Chess.com"]
[Date "2020.07.07"]
[Round "4"]
[White "Gordima"]
[Black "Thee-Chessboy"]
[Result "0-1"]
[WhiteElo "2721"]
[BlackElo "2536"]
[TimeControl "180+1"]
[EndTime "10:39:01 PDT"]
[Termination "Thee-Chessboy won by resignation"]

1. d4 {[%clk 0:03:00.9]} 1... Nf6 {[%clk 0:02:59.6]} 2. c4 {[%clk 0:03:01.3]}
2... g6 {[%clk 0:02:59.7]} 3. Nc3 {[%clk 0:03:01.6]} 3... Bg7 {[%clk 0:03:00.3]}
4. e4 {[%clk 0:03:01.5]} 4... d6 {[%clk 0:03:00.4]} 5. h3 {[%clk 0:03:01.9]}
5... O-O {[%clk 0:03:00.5]} 6. Be3 {[%clk 0:03:02.4]} 6... c5 {[%clk 0:02:58.9]}
7. Nf3 {[%clk 0:02:59.8]} 7... cxd4 {[%clk 0:02:56.4]} 8. Nxd4 {[%clk
0:03:00.7]} 8... Nc6 {[%clk 0:02:56.6]} 9. Be2 {[%clk 0:03:00.7]} 9... Qd7
{[%clk 0:02:56.5]} 10. O-O {[%clk 0:02:58.6]} 10... Qd8 {[%clk 0:02:56.2]} 11.
Qc2 {[%clk 0:02:55.4]} 11... Bd7 {[%clk 0:02:52.2]} 12. Rad1 {[%clk 0:02:55.4]}
12... Rc8 {[%clk 0:02:50.6]} 13. f4 {[%clk 0:02:49.1]} 13... Nxd4 {[%clk
0:02:49]} 14. Bxd4 {[%clk 0:02:48.6]} 14... Bc6 {[%clk 0:02:44]} 15. b4 {[%clk
0:02:25.3]} 15... b6 {[%clk 0:02:38.2]} 16. e5 {[%clk 0:02:08.8]} 16... dxe5
{[%clk 0:02:14.5]} 17. fxe5 {[%clk 0:02:09.7]} 17... Ne8 {[%clk 0:02:13.4]} 18.
Qd2 {[%clk 0:01:59.8]} 18... Nc7 {[%clk 0:02:09.1]} 19. Bg4 {[%clk 0:01:56.2]}
19... Ne6 {[%clk 0:02:02.3]} 20. Bxe6 {[%clk 0:01:55.6]} 20... fxe6 {[%clk
0:02:02]} 21. Qe3 {[%clk 0:01:42.8]} 21... Qc7 {[%clk 0:01:57.6]} 22. c5 {[%clk
0:01:39.7]} 22... bxc5 {[%clk 0:01:45.8]} 23. bxc5 {[%clk 0:01:38.3]} 23... Rcd8
{[%clk 0:01:39.5]} 24. Rxf8+ {[%clk 0:01:25.3]} 24... Rxf8 {[%clk 0:01:37.1]}
25. Re1 {[%clk 0:01:25.4]} 25... Qb7 {[%clk 0:01:30.9]} 26. Ne4 {[%clk
0:01:10.9]} 26... Rd8 {[%clk 0:01:21.8]} 27. Bc3 {[%clk 0:01:07.4]} 27... Qa6
{[%clk 0:01:08.6]} 28. Nf6+ {[%clk 0:01:05.8]} 28... Kh8 {[%clk 0:00:53.9]} 29.
h4 {[%clk 0:00:58.9]} 29... Qxa2 {[%clk 0:00:45.1]} 30. Re2 {[%clk 0:00:54.7]}
30... Qb1+ {[%clk 0:00:42.8]} 31. Kh2 {[%clk 0:00:53.8]} 31... Rd3 {[%clk
0:00:32.2]} 32. Rb2 {[%clk 0:00:53.2]} 32... Qxb2 {[%clk 0:00:22.8]} 0-1

[Event "*** SCC Grand Prix: Titled Tuesday Blitz"]
[Site "Chess.com"]
[Date "2020.07.07"]
[Round "4"]
[White "Shield12"]
[Black "timator"]
[Result "1-0"]
[WhiteElo "2835"]
[BlackElo "2629"]
[TimeControl "180+1"]
[EndTime "10:39:03 PDT"]
[Termination "Shield12 won by resignation"]

1. e4 {[%clk 0:03:00.9]} 1... e5 {[%clk 0:02:59.1]} 2. Nf3 {[%clk 0:03:00.8]}
2... Nc6 {[%clk 0:02:59.5]} 3. Nc3 {[%clk 0:03:01.7]} 3... Nf6 {[%clk
0:02:59.2]} 4. Be2 {[%clk 0:03:02.6]} 4... d6 {[%clk 0:02:56.5]} 5. d3 {[%clk
0:03:01.6]} 5... g6 {[%clk 0:02:56.4]} 6. O-O {[%clk 0:02:55.1]} 6... Bg7 {[%clk
0:02:56.7]} 7. Re1 {[%clk 0:02:54.7]} 7... O-O {[%clk 0:02:56.6]} 8. d4 {[%clk
0:02:55.3]} 8... exd4 {[%clk 0:02:50.9]} 9. Nxd4 {[%clk 0:02:56.2]} 9... Re8
{[%clk 0:02:51.4]} 10. Nxc6 {[%clk 0:02:54.7]} 10... bxc6 {[%clk 0:02:51.8]} 11.
Bd3 {[%clk 0:02:54.9]} 11... d5 {[%clk 0:02:47.4]} 12. Bf4 {[%clk 0:02:52.8]}
12... Be6 {[%clk 0:02:39]} 13. h3 {[%clk 0:02:51.2]} 13... dxe4 {[%clk
0:02:24.5]} 14. Nxe4 {[%clk 0:02:48.3]} 14... Nxe4 {[%clk 0:02:24.4]} 15. Bxe4
{[%clk 0:02:46.9]} 15... Bxb2 {[%clk 0:02:24.4]} 16. Rb1 {[%clk 0:02:44.8]}
16... Bc3 {[%clk 0:02:24.7]} 17. Re3 {[%clk 0:02:41.9]} 17... Bg7 {[%clk
0:01:53.6]} 18. Bxc6 {[%clk 0:02:39.7]} 18... Qxd1+ {[%clk 0:01:53.2]} 19. Rxd1
{[%clk 0:02:40.6]} 19... Rad8 {[%clk 0:01:49.6]} 20. Red3 {[%clk 0:02:23.9]}
20... Rxd3 {[%clk 0:01:49.4]} 21. Rxd3 {[%clk 0:02:24.8]} 21... Rf8 {[%clk
0:01:49.1]} 22. Bd5 {[%clk 0:02:21.9]} 22... Bf5 {[%clk 0:01:23.3]} 23. Ra3
{[%clk 0:02:21.4]} 23... Bd4 {[%clk 0:01:18.3]} 24. c4 {[%clk 0:01:47.9]} 24...
Re8 {[%clk 0:00:57]} 25. g4 {[%clk 0:01:46.9]} 25... Re1+ {[%clk 0:00:19.4]} 26.
Kg2 {[%clk 0:01:46]} 26... Be4+ {[%clk 0:00:15.8]} 27. Bxe4 {[%clk 0:01:41.9]}
27... Rxe4 {[%clk 0:00:16.7]} 28. Kf3 {[%clk 0:01:33.2]} 28... Re7 {[%clk
0:00:16.7]} 29. Ra5 {[%clk 0:01:24.9]} 29... Kg7 {[%clk 0:00:16]} 30. Rd5 {[%clk
0:01:20.2]} 30... Bf6 {[%clk 0:00:10.9]} 31. Rc5 {[%clk 0:01:17.9]} 31... Bd4
{[%clk 0:00:04.5]} 32. Rxc7 {[%clk 0:01:17.6]} 32... Re1 {[%clk 0:00:04.6]} 33.
c5 {[%clk 0:01:15.5]} 33... Ra1 {[%clk 0:00:04]} 34. Rd7 {[%clk 0:01:12.7]}
34... Bc3 {[%clk 0:00:02.1]} 35. c6 {[%clk 0:01:12.2]} 1-0

[Event "*** SCC Grand Prix: Titled Tuesday Blitz"]
[Site "Chess.com"]
[Date "2020.07.07"]
[Round "4"]
[White "juniortay"]
[Black "SidArun"]
[Result "1-0"]
[WhiteElo "2363"]
[BlackElo "2197"]
[TimeControl "180+1"]
[EndTime "10:39:05 PDT"]
[Termination "juniortay won by checkmate"]

1. e4 {[%clk 0:03:00]} 1... c6 {[%clk 0:02:59.6]} 2. Nf3 {[%clk 0:02:59.1]} 2...
d5 {[%clk 0:03:00.5]} 3. exd5 {[%clk 0:02:57.9]} 3... cxd5 {[%clk 0:03:00.6]} 4.
Ne5 {[%clk 0:02:58.2]} 4... Nc6 {[%clk 0:02:58.4]} 5. d4 {[%clk 0:02:58.4]} 5...
Nxe5 {[%clk 0:02:56.6]} 6. dxe5 {[%clk 0:02:58.2]} 6... e6 {[%clk 0:02:56.9]} 7.
Bd3 {[%clk 0:02:57.8]} 7... Bc5 {[%clk 0:02:56.2]} 8. O-O {[%clk 0:02:57.5]}
8... Ne7 {[%clk 0:02:53.4]} 9. Nd2 {[%clk 0:02:56.1]} 9... Ng6 {[%clk
0:02:53.3]} 10. Nf3 {[%clk 0:02:55.4]} 10... Qc7 {[%clk 0:02:52.9]} 11. Qe2
{[%clk 0:02:53]} 11... Bd7 {[%clk 0:02:50.5]} 12. c3 {[%clk 0:02:51]} 12... a6
{[%clk 0:02:31.2]} 13. a4 {[%clk 0:02:48.8]} 13... Rb8 {[%clk 0:02:20.3]} 14.
Re1 {[%clk 0:02:42.9]} 14... b5 {[%clk 0:02:19.4]} 15. axb5 {[%clk 0:02:42.8]}
15... axb5 {[%clk 0:02:20.3]} 16. Ng5 {[%clk 0:02:42.6]} 16... Nxe5 {[%clk
0:01:59.1]} 17. Qxe5 {[%clk 0:02:26.6]} 17... Qxe5 {[%clk 0:01:58.3]} 18. Rxe5
{[%clk 0:02:26.9]} 18... f6 {[%clk 0:01:59.2]} 19. Re2 {[%clk 0:02:24.5]} 19...
fxg5 {[%clk 0:01:58.5]} 20. Bxg5 {[%clk 0:02:24.3]} 20... O-O {[%clk 0:01:58.4]}
21. b4 {[%clk 0:02:10.3]} 21... Bb6 {[%clk 0:01:48.9]} 22. Be7 {[%clk
0:01:50.3]} 22... Rf7 {[%clk 0:01:43.7]} 23. Bd6 {[%clk 0:01:50.3]} 23... Rc8
{[%clk 0:01:41.4]} 24. Be5 {[%clk 0:01:46.6]} 24... Rcf8 {[%clk 0:01:31.5]} 25.
Bg3 {[%clk 0:01:42.9]} 25... Bd8 {[%clk 0:01:13.4]} 26. Ra7 {[%clk 0:01:22]}
26... Bf6 {[%clk 0:01:12.2]} 27. Be5 {[%clk 0:01:14.5]} 27... Bxe5 {[%clk
0:00:54.6]} 28. Rxe5 {[%clk 0:01:13.4]} 28... Rxf2 {[%clk 0:00:53.7]} 29. Rxd7
{[%clk 0:01:10.7]} 29... Rd2 {[%clk 0:00:53.8]} 30. Bxh7+ {[%clk 0:00:59.8]}
30... Kxh7 {[%clk 0:00:53.1]} 31. h4 {[%clk 0:00:56.9]} 31... Rd3 {[%clk
0:00:35.7]} 32. Rg5 {[%clk 0:00:55.1]} 32... Rg8 {[%clk 0:00:35]} 33. Rc7 {[%clk
0:00:54.6]} 33... Re3 {[%clk 0:00:32.5]} 34. Rc5 {[%clk 0:00:50.2]} 34... e5
{[%clk 0:00:28.2]} 35. Rc6 {[%clk 0:00:45.2]} 35... d4 {[%clk 0:00:26.6]} 36.
Rh5# {[%clk 0:00:44.9]} 1-0

[Event "*** SCC Grand Prix: Titled Tuesday Blitz"]
[Site "Chess.com"]
[Date "2020.07.07"]
[Round "4"]
[White "BogdanDeac"]
[Black "GMNickPert"]
[Result "0-1"]
[WhiteElo "2809"]
[BlackElo "2647"]
[TimeControl "180+1"]
[EndTime "10:39:08 PDT"]
[Termination "GMNickPert won by resignation"]

1. Nf3 {[%clk 0:03:00.9]} 1... Nf6 {[%clk 0:02:58.6]} 2. c4 {[%clk 0:03:00.7]}
2... b6 {[%clk 0:02:56.2]} 3. d4 {[%clk 0:02:58.7]} 3... e6 {[%clk 0:02:54.2]}
4. g3 {[%clk 0:02:58.5]} 4... Bb7 {[%clk 0:02:50.5]} 5. Bg2 {[%clk 0:02:58.3]}
5... g6 {[%clk 0:02:50.9]} 6. O-O {[%clk 0:02:46.9]} 6... Bg7 {[%clk 0:02:50.9]}
7. Qc2 {[%clk 0:02:47]} 7... O-O {[%clk 0:02:46.8]} 8. Nc3 {[%clk 0:02:45.6]}
8... d5 {[%clk 0:02:42.2]} 9. Ne5 {[%clk 0:02:35.2]} 9... Na6 {[%clk 0:02:29.4]}
10. Bg5 {[%clk 0:02:31.5]} 10... h6 {[%clk 0:02:26.3]} 11. Bxf6 {[%clk 0:02:28]}
11... Bxf6 {[%clk 0:02:27.2]} 12. Nxg6 {[%clk 0:02:19.6]} 12... fxg6 {[%clk
0:02:24.3]} 13. Qxg6+ {[%clk 0:02:19.1]} 13... Bg7 {[%clk 0:02:23.9]} 14. Qxe6+
{[%clk 0:02:17.5]} 14... Kh8 {[%clk 0:02:19.6]} 15. cxd5 {[%clk 0:02:13]} 15...
Nb4 {[%clk 0:02:07.6]} 16. Rad1 {[%clk 0:02:00.3]} 16... Rf6 {[%clk 0:01:59.3]}
17. Qg4 {[%clk 0:01:23.3]} 17... Nxd5 {[%clk 0:01:58.5]} 18. e4 {[%clk
0:01:23.2]} 18... Nxc3 {[%clk 0:01:54.2]} 19. bxc3 {[%clk 0:01:24.1]} 19... Qe8
{[%clk 0:01:36.4]} 20. e5 {[%clk 0:00:39]} 20... Rg6 {[%clk 0:01:36.1]} 21. Qf5
{[%clk 0:00:37.5]} 21... Bxg2 {[%clk 0:01:35]} 22. Kxg2 {[%clk 0:00:38.4]} 22...
Qc6+ {[%clk 0:01:26.8]} 23. d5 {[%clk 0:00:37.5]} 23... Qe8 {[%clk 0:01:18.7]}
24. f4 {[%clk 0:00:37]} 24... Rd8 {[%clk 0:01:16.8]} 25. h4 {[%clk 0:00:21.7]}
25... b5 {[%clk 0:01:12.9]} 26. e6 {[%clk 0:00:12]} 26... Bxc3 {[%clk
0:01:07.3]} 27. Qd3 {[%clk 0:00:07.2]} 27... b4 {[%clk 0:01:05.8]} 28. Kh3
{[%clk 0:00:06.3]} 28... Rxe6 {[%clk 0:00:59.8]} 29. Rc1 {[%clk 0:00:05.9]}
29... Re3 {[%clk 0:00:58.1]} 30. Qc4 {[%clk 0:00:06.1]} 30... Qg6 {[%clk
0:00:56.5]} 0-1

[Event "*** SCC Grand Prix: Titled Tuesday Blitz"]
[Site "Chess.com"]
[Date "2020.07.07"]
[Round "4"]
[White "Balla_Tamas"]
[Black "VishnuPrasanna"]
[Result "0-1"]
[WhiteElo "2521"]
[BlackElo "2745"]
[TimeControl "180+1"]
[EndTime "10:39:08 PDT"]
[Termination "VishnuPrasanna won by resignation"]

1. d4 {[%clk 0:02:59.4]} 1... Nf6 {[%clk 0:02:58.9]} 2. Bf4 {[%clk 0:02:58.4]}
2... e6 {[%clk 0:02:59]} 3. e3 {[%clk 0:02:56.7]} 3... c5 {[%clk 0:02:58.8]} 4.
c3 {[%clk 0:02:54.8]} 4... Nc6 {[%clk 0:02:59.2]} 5. h3 {[%clk 0:02:51.8]} 5...
Nd5 {[%clk 0:02:59.1]} 6. Bh2 {[%clk 0:02:50.5]} 6... f5 {[%clk 0:02:58.5]} 7.
Nd2 {[%clk 0:02:49.9]} 7... cxd4 {[%clk 0:02:58.6]} 8. exd4 {[%clk 0:02:47.6]}
8... Be7 {[%clk 0:02:52.4]} 9. Ngf3 {[%clk 0:02:47]} 9... O-O {[%clk 0:02:52.3]}
10. Bc4 {[%clk 0:02:46.9]} 10... Nb6 {[%clk 0:02:51.2]} 11. Bb3 {[%clk
0:02:46.7]} 11... f4 {[%clk 0:02:51.6]} 12. Qe2 {[%clk 0:02:42.9]} 12... d5
{[%clk 0:02:51.6]} 13. O-O {[%clk 0:02:39.5]} 13... Bd7 {[%clk 0:02:49.1]} 14.
Rfe1 {[%clk 0:02:30.9]} 14... Bd6 {[%clk 0:02:48.5]} 15. c4 {[%clk 0:02:18.6]}
15... Bc7 {[%clk 0:01:58.8]} 16. c5 {[%clk 0:01:51.1]} 16... Nc8 {[%clk
0:01:57]} 17. Bc2 {[%clk 0:01:48.3]} 17... Qf6 {[%clk 0:01:50.4]} 18. Qd3 {[%clk
0:01:45.2]} 18... g6 {[%clk 0:01:50.4]} 19. a3 {[%clk 0:01:45.1]} 19... N8e7
{[%clk 0:01:49.1]} 20. b4 {[%clk 0:01:43.7]} 20... a6 {[%clk 0:01:48.4]} 21. Nb3
{[%clk 0:01:35.3]} 21... Rf7 {[%clk 0:01:44.2]} 22. Rad1 {[%clk 0:01:28.9]}
22... g5 {[%clk 0:01:44.2]} 23. Qc3 {[%clk 0:01:19.5]} 23... h5 {[%clk
0:01:38.8]} 24. Ne5 {[%clk 0:01:19]} 24... Nxe5 {[%clk 0:01:25.6]} 25. dxe5
{[%clk 0:01:19.9]} 25... Qg7 {[%clk 0:01:24.5]} 26. Nd4 {[%clk 0:00:55.1]} 26...
Raf8 {[%clk 0:01:23.9]} 27. Qd3 {[%clk 0:00:30.8]} 27... g4 {[%clk 0:01:20.6]}
28. hxg4 {[%clk 0:00:27.6]} 28... hxg4 {[%clk 0:01:21.5]} 29. a4 {[%clk
0:00:26.4]} 29... Nf5 {[%clk 0:01:16.5]} 30. Nxf5 {[%clk 0:00:18.8]} 30... Rxf5
{[%clk 0:01:17.4]} 31. Qd4 {[%clk 0:00:16.5]} 31... Bxe5 {[%clk 0:01:12.4]} 32.
Qd3 {[%clk 0:00:11.8]} 32... g3 {[%clk 0:01:08.9]} 33. fxg3 {[%clk 0:00:08.3]}
33... fxg3 {[%clk 0:01:07.7]} 0-1

[Event "*** SCC Grand Prix: Titled Tuesday Blitz"]
[Site "Chess.com"]
[Date "2020.07.07"]
[Round "4"]
[White "TheLawAdv"]
[Black "ahachess"]
[Result "1/2-1/2"]
[WhiteElo "2055"]
[BlackElo "2274"]
[TimeControl "180+1"]
[EndTime "10:39:11 PDT"]
[Termination "Game drawn by agreement"]

1. e4 {[%clk 0:02:53.5]} 1... c5 {[%clk 0:02:59.1]} 2. Nc3 {[%clk 0:02:52.3]}
2... Nc6 {[%clk 0:02:59.1]} 3. g3 {[%clk 0:02:50.6]} 3... g6 {[%clk 0:02:59.2]}
4. Bg2 {[%clk 0:02:51]} 4... Bg7 {[%clk 0:02:59.8]} 5. d3 {[%clk 0:02:51]} 5...
e6 {[%clk 0:02:59.2]} 6. Be3 {[%clk 0:02:51.1]} 6... d6 {[%clk 0:02:58.7]} 7.
Qd2 {[%clk 0:02:50.7]} 7... Rb8 {[%clk 0:02:57.1]} 8. Nge2 {[%clk 0:02:48.2]}
8... Nd4 {[%clk 0:02:53.3]} 9. O-O {[%clk 0:02:45.8]} 9... Ne7 {[%clk
0:02:46.1]} 10. Rac1 {[%clk 0:02:40.2]} 10... O-O {[%clk 0:02:44.9]} 11. Bh6
{[%clk 0:02:32.8]} 11... b5 {[%clk 0:02:34.3]} 12. Bxg7 {[%clk 0:02:32]} 12...
Kxg7 {[%clk 0:02:34.2]} 13. Nxd4 {[%clk 0:02:32.2]} 13... cxd4 {[%clk 0:02:34]}
14. Ne2 {[%clk 0:02:32.7]} 14... Qb6 {[%clk 0:02:31.6]} 15. c3 {[%clk
0:02:32.4]} 15... dxc3 {[%clk 0:02:09]} 16. Qxc3+ {[%clk 0:02:31.4]} 16... Kg8
{[%clk 0:02:09.6]} 17. Qc7 {[%clk 0:02:28.9]} 17... Re8 {[%clk 0:01:46]} 18.
Qxb6 {[%clk 0:02:27.2]} 18... Rxb6 {[%clk 0:01:45.4]} 19. Rc7 {[%clk 0:02:27.3]}
19... Bb7 {[%clk 0:01:30.1]} 20. Rfc1 {[%clk 0:02:17.9]} 20... Kf8 {[%clk
0:01:29.7]} 21. Nd4 {[%clk 0:02:08.6]} 21... Rc8 {[%clk 0:01:16.6]} 22. b4
{[%clk 0:01:55.9]} 22... Ke8 {[%clk 0:01:12.1]} 23. Rxc8+ {[%clk 0:01:45.2]}
23... Bxc8 {[%clk 0:01:11.9]} 24. Rc7 {[%clk 0:01:45.5]} 24... a6 {[%clk
0:01:05.5]} 25. f4 {[%clk 0:01:35.9]} 25... Kd8 {[%clk 0:01:04.6]} 26. Rc3
{[%clk 0:01:34.1]} 26... Bd7 {[%clk 0:00:58.5]} 27. Kf2 {[%clk 0:01:28.1]} 27...
Nc6 {[%clk 0:00:57.5]} 28. Nxc6+ {[%clk 0:01:27.3]} 28... Rxc6 {[%clk
0:00:55.7]} 29. Rxc6 {[%clk 0:01:27.5]} 29... Bxc6 {[%clk 0:00:56.6]} 30. Ke3
{[%clk 0:01:24.5]} 30... Kc7 {[%clk 0:00:55.2]} 31. d4 {[%clk 0:01:20.8]} 31...
Kb6 {[%clk 0:00:53.5]} 32. a3 {[%clk 0:01:20.1]} 32... a5 {[%clk 0:00:52.1]} 33.
Bf1 {[%clk 0:01:18.5]} 33... axb4 {[%clk 0:00:51.9]} 34. axb4 {[%clk 0:01:19.4]}
34... Bd7 {[%clk 0:00:51.8]} 35. g4 {[%clk 0:01:12.8]} 35... f6 {[%clk 0:00:52]}
36. h4 {[%clk 0:01:12.5]} 36... h6 {[%clk 0:00:52.1]} 37. g5 {[%clk 0:01:11.5]}
37... fxg5 {[%clk 0:00:51]} 38. fxg5 {[%clk 0:01:11.6]} 38... hxg5 {[%clk
0:00:47.4]} 39. hxg5 {[%clk 0:01:12.5]} 39... e5 {[%clk 0:00:47.6]} 40. dxe5
{[%clk 0:01:05.3]} 40... dxe5 {[%clk 0:00:47.1]} 41. Be2 {[%clk 0:01:05.1]}
41... Kc7 {[%clk 0:00:46.3]} 42. Bd3 {[%clk 0:01:03.1]} 42... Kd6 {[%clk
0:00:46]} 1/2-1/2